[Event "Titled Tuesday Blitz November 15 Late 2022"]
[White "Koutlas, Nikolaos"]
[Black "Talibov, Shiroghlan"]
[WhiteFideId "25827138"]
[BlackFideId "13429078"]
[WhiteElo "2167"]
[BlackElo "2261"]
[Result "1-0"]
[Round "02"]
[TimeControl "180+1"]
[Date "2022.11.16"]
[WhiteClock "0:00:07"]
[BlackClock "0:00:04"]

1. e4 {[%clk 0:03:00]}  e6 {[%clk 0:02:58]} 2. d4 {[%clk 0:02:59]}  d5 {[%clk 0:02:59]} 3. Nd2 {[%clk 0:03:00]}  Nf6 {[%clk 0:02:59]} 4. e5 {[%clk 0:03:00]}  Nfd7 {[%clk 0:02:59]} 5. c3 {[%clk 0:03:00]}  c5 {[%clk 0:02:59]} 6. f4 {[%clk 0:03:01]}  Nc6 {[%clk 0:02:51]} 7. Ngf3 {[%clk 0:03:01]}  Qb6 {[%clk 0:02:49]} 8. dxc5 {[%clk 0:02:55]}  Nxc5 {[%clk 0:02:46]} 9. b4 {[%clk 0:02:51]}  Ne4 {[%clk 0:02:40]} 10. Nxe4 {[%clk 0:02:50]}  dxe4 {[%clk 0:02:41]} 11. Ng5 {[%clk 0:02:51]}  e3 {[%clk 0:02:40]} 12. Qd3 {[%clk 0:02:35]}  Bd7 {[%clk 0:02:35]} 13. Bxe3 {[%clk 0:02:35]}  Qc7 {[%clk 0:02:36]} 14. Rd1 {[%clk 0:02:27]}  Be7 {[%clk 0:02:33]} 15. Nxf7 {[%clk 0:02:26]}  Kxf7 {[%clk 0:02:08]} 16. Qxd7 {[%clk 0:02:25]}  Rac8 {[%clk 0:02:09]} 17. g4 {[%clk 0:01:09]}  Qb8 {[%clk 0:01:39]} 18. Qxe6+ {[%clk 0:01:07]}  Ke8 {[%clk 0:00:59]} 19. Bc4 {[%clk 0:01:03]}  Nd8 {[%clk 0:00:59]} 20. Qd7+ {[%clk 0:00:41]}  Kf8 {[%clk 0:00:59]} 21. Qf5+ {[%clk 0:00:39]}  Ke8 {[%clk 0:00:53]} 22. Bb5+ {[%clk 0:00:35]}  Nc6 {[%clk 0:00:53]} 23. O-O {[%clk 0:00:34]}  Qc7 {[%clk 0:00:44]} 24. Qe6 {[%clk 0:00:20]}  a6 {[%clk 0:00:39]} 25. Bc4 {[%clk 0:00:20]}  Rf8 {[%clk 0:00:25]} 26. Bb3 {[%clk 0:00:20]}  Nd8 {[%clk 0:00:22]} 27. Qd5 {[%clk 0:00:16]}  Nc6 {[%clk 0:00:22]} 28. Kh1 {[%clk 0:00:15]}  Rd8 {[%clk 0:00:13]} 29. Qe6 {[%clk 0:00:14]}  Rc8 {[%clk 0:00:13]} 30. Bb6 {[%clk 0:00:14]}  Nd8 {[%clk 0:00:07]} 31. Rxd8+ {[%clk 0:00:04]}  Qxd8 {[%clk 0:00:01]} 32. Bxd8 {[%clk 0:00:04]}  Rxd8 {[%clk 0:00:02]} 33. Qc4 {[%clk 0:00:03]}  Rd7 {[%clk 0:00:02]} 34. b5 {[%clk 0:00:02]}  Bd8 {[%clk 0:00:02]} 35. bxa6 {[%clk 0:00:03]}  Ke7 {[%clk 0:00:03]} 36. Ba4 {[%clk 0:00:03]}  Rc7 {[%clk 0:00:03]} 37. Qb4+ {[%clk 0:00:04]}  Kf7 {[%clk 0:00:01]} 38. a7 {[%clk 0:00:05]}  Be7 {[%clk 0:00:02]} 39. Bb3+ {[%clk 0:00:06]}  Ke8 {[%clk 0:00:02]} 40. Qb6 {[%clk 0:00:06]}  Kd7 {[%clk 0:00:03]} 41. a8=Q {[%clk 0:00:05]}  Rxa8 {[%clk 0:00:02]} 42. Be6+ {[%clk 0:00:05]}  Ke8 {[%clk 0:00:02]} 43. Qxc7 {[%clk 0:00:05]}  Rd8 {[%clk 0:00:03]} 44. Qxd8+ {[%clk 0:00:05]}  Kxd8 {[%clk 0:00:03]} 45. Bd5 {[%clk 0:00:06]}  Kc7 {[%clk 0:00:04]} 46. Be4 {[%clk 0:00:07]}  Bc5 {[%clk 0:00:04]} 47. Bxh7 {[%clk 0:00:07]} 1-0


[Site "https://www.chess.com"]

[Event "Titled Tuesday Blitz November 15 Late 2022"]
[White "Kumala, Aleksander"]
[Black "Horcajuelo Rocamora, Martin"]
[WhiteFideId "1141880"]
[BlackFideId "24573027"]
[WhiteElo "2269"]
[BlackElo "2094"]
[Result "0-1"]
[Round "02"]
[TimeControl "180+1"]
[Date "2022.11.16"]
[WhiteClock "0:00:11"]
[BlackClock "0:00:23"]

1. d4 {[%clk 0:03:00]}  Nf6 {[%clk 0:02:59]} 2. Bg5 {[%clk 0:03:00]}  Ne4 {[%clk 0:02:55]} 3. h4 {[%clk 0:02:57]}  Nxg5 {[%clk 0:02:53]} 4. hxg5 {[%clk 0:02:58]}  c5 {[%clk 0:02:54]} 5. d5 {[%clk 0:02:58]}  e6 {[%clk 0:02:53]} 6. Nf3 {[%clk 0:02:56]}  Qb6 {[%clk 0:02:51]} 7. dxe6 {[%clk 0:02:49]}  dxe6 {[%clk 0:02:50]} 8. g6 {[%clk 0:02:47]}  fxg6 {[%clk 0:02:49]} 9. e3 {[%clk 0:02:41]}  Nc6 {[%clk 0:02:48]} 10. Bd3 {[%clk 0:02:40]}  Ne7 {[%clk 0:02:42]} 11. Nbd2 {[%clk 0:02:35]}  Bd7 {[%clk 0:02:41]} 12. Ne5 {[%clk 0:02:32]}  O-O-O {[%clk 0:02:41]} 13. Nf7 {[%clk 0:02:31]}  Rg8 {[%clk 0:02:35]} 14. Nc4 {[%clk 0:02:29]}  Qc7 {[%clk 0:02:33]} 15. Nxd8 {[%clk 0:02:25]}  Qxd8 {[%clk 0:02:34]} 16. Rxh7 {[%clk 0:02:23]}  Nc6 {[%clk 0:02:27]} 17. a4 {[%clk 0:02:17]}  Qg5 {[%clk 0:02:25]} 18. Qf3 {[%clk 0:02:14]}  Be7 {[%clk 0:02:24]} 19. a5 {[%clk 0:02:05]}  Rf8 {[%clk 0:02:21]} 20. Qg3 {[%clk 0:02:05]}  Qxg3 {[%clk 0:02:21]} 21. fxg3 {[%clk 0:02:06]}  Bf6 {[%clk 0:02:15]} 22. Bxg6 {[%clk 0:02:04]}  Ne5 {[%clk 0:02:14]} 23. Nxe5 {[%clk 0:01:58]}  Bxe5 {[%clk 0:02:14]} 24. O-O-O {[%clk 0:01:56]}  Bc6 {[%clk 0:02:10]} 25. e4 {[%clk 0:01:53]}  b5 {[%clk 0:01:59]} 26. axb6 {[%clk 0:01:51]}  axb6 {[%clk 0:02:00]} 27. g4 {[%clk 0:01:48]}  Rf6 {[%clk 0:01:16]} 28. Rxg7 {[%clk 0:01:42]}  Rf2 {[%clk 0:01:11]} 29. Rg8+ {[%clk 0:01:41]}  Kb7 {[%clk 0:01:11]} 30. Be8 {[%clk 0:01:37]}  Bxe4 {[%clk 0:01:10]} 31. Rd7+ {[%clk 0:01:37]}  Ka6 {[%clk 0:01:09]} 32. Bg6 {[%clk 0:01:19]}  Bd5 {[%clk 0:01:09]} 33. Bd3+ {[%clk 0:01:10]}  c4 {[%clk 0:01:03]} 34. Bh7 {[%clk 0:01:02]}  Bf4+ {[%clk 0:00:58]} 35. Kb1 {[%clk 0:00:56]}  Rxg2 {[%clk 0:00:52]} 36. Ka2 {[%clk 0:00:50]}  c3+ {[%clk 0:00:52]} 37. b3 {[%clk 0:00:48]}  Rg1 {[%clk 0:00:48]} 38. Ka3 {[%clk 0:00:46]}  Ra1+ {[%clk 0:00:46]} 39. Kb4 {[%clk 0:00:46]}  Rd1 {[%clk 0:00:38]} 40. Bd3+ {[%clk 0:00:44]}  b5 {[%clk 0:00:38]} 41. Bxb5+ {[%clk 0:00:44]}  Kb6 {[%clk 0:00:39]} 42. Rf8 {[%clk 0:00:32]}  Rd4+ {[%clk 0:00:38]} 43. Bc4 {[%clk 0:00:32]}  Be5 {[%clk 0:00:38]} 44. g5 {[%clk 0:00:25]}  Rg4 {[%clk 0:00:33]} 45. g6 {[%clk 0:00:24]}  Bxc4 {[%clk 0:00:33]} 46. bxc4 {[%clk 0:00:23]}  Kc6 {[%clk 0:00:34]} 47. Ra7 {[%clk 0:00:17]}  Bd6+ {[%clk 0:00:34]} 48. Kxc3 {[%clk 0:00:16]}  Bxf8 {[%clk 0:00:34]} 49. Rf7 {[%clk 0:00:16]}  Bd6 {[%clk 0:00:31]} 50. g7 {[%clk 0:00:16]}  Rxg7 {[%clk 0:00:31]} 51. Rf3 {[%clk 0:00:15]}  Be5+ {[%clk 0:00:29]} 52. Kd3 {[%clk 0:00:15]}  Rd7+ {[%clk 0:00:28]} 53. Ke4 {[%clk 0:00:15]}  Bg7 {[%clk 0:00:27]} 54. Rg3 {[%clk 0:00:16]}  Bb2 {[%clk 0:00:25]} 55. Rg6 {[%clk 0:00:15]}  Rd6 {[%clk 0:00:24]} 56. Rh6 {[%clk 0:00:13]}  Kc5 {[%clk 0:00:24]} 57. Rh4 {[%clk 0:00:11]}  Rd4+ {[%clk 0:00:23]} 0-1


[Site "https://www.chess.com"]

[Event "Titled Tuesday Blitz November 15 Late 2022"]
[White "Makridis, Dimitrios"]
[Black "Klenburg, Michael"]
[WhiteFideId "25864475"]
[BlackFideId "14102072"]
[WhiteElo "2272"]
[BlackElo "2405"]
[Result "1-0"]
[Round "02"]
[TimeControl "180+1"]
[Date "2022.11.16"]
[WhiteClock "0:00:05"]
[BlackClock "0:00:32"]

1. e4 {[%clk 0:02:53]}  d6 {[%clk 0:02:59]} 2. Nc3 {[%clk 0:02:54]}  Nf6 {[%clk 0:02:59]} 3. d4 {[%clk 0:02:54]}  g6 {[%clk 0:02:59]} 4. f4 {[%clk 0:02:54]}  Bg7 {[%clk 0:02:59]} 5. Nf3 {[%clk 0:02:55]}  c5 {[%clk 0:02:59]} 6. dxc5 {[%clk 0:02:54]}  Qa5 {[%clk 0:02:59]} 7. cxd6 {[%clk 0:02:54]}  Nxe4 {[%clk 0:02:57]} 8. dxe7 {[%clk 0:02:48]}  Nc6 {[%clk 0:02:56]} 9. Bd3 {[%clk 0:02:30]}  Nxc3 {[%clk 0:02:54]} 10. bxc3 {[%clk 0:01:55]}  Qxc3+ {[%clk 0:02:52]} 11. Kf2 {[%clk 0:01:51]}  Qxa1 {[%clk 0:02:51]} 12. Bb5 {[%clk 0:01:48]}  Bd7 {[%clk 0:02:39]} 13. Re1 {[%clk 0:00:18]}  Qc3 {[%clk 0:02:09]} 14. Kf1 {[%clk 0:00:18]}  Qc5 {[%clk 0:02:05]} 15. c4 {[%clk 0:00:15]}  a6 {[%clk 0:01:57]} 16. Be3 {[%clk 0:00:14]}  Qa3 {[%clk 0:01:54]} 17. Bxc6 {[%clk 0:00:03]}  Bxc6 {[%clk 0:01:50]} 18. Bb6 {[%clk 0:00:03]}  Bd7 {[%clk 0:01:12]} 19. Qd5 {[%clk 0:00:03]}  Qa4 {[%clk 0:00:41]} 20. Ng5 {[%clk 0:00:04]}  Qxc4+ {[%clk 0:00:35]} 21. Qxc4 {[%clk 0:00:04]}  Bb5 {[%clk 0:00:36]} 22. Qxb5+ {[%clk 0:00:03]}  axb5 {[%clk 0:00:35]} 23. Rd1 {[%clk 0:00:04]}  Kxe7 {[%clk 0:00:35]} 24. Re1+ {[%clk 0:00:04]}  Kd7 {[%clk 0:00:35]} 25. Nxf7 {[%clk 0:00:03]}  Rhe8 {[%clk 0:00:32]} 26. Rd1+ {[%clk 0:00:04]}  Kc6 {[%clk 0:00:32]} 27. Rd6# {[%clk 0:00:05]} 1-0


[Site "https://www.chess.com"]

[Event "Titled Tuesday Blitz November 15 Late 2022"]
[White "Mendonca, Mateus Nakajo"]
[Black "Melkumyan, Hrant"]
[WhiteFideId "2110954"]
[BlackFideId "13302485"]
[WhiteElo "2310"]
[BlackElo "2604"]
[Result "0-1"]
[Round "02"]
[TimeControl "180+1"]
[Date "2022.11.15"]
[WhiteClock "0:00:18"]
[BlackClock "0:01:25"]

1. d4 {[%clk 0:03:00]}  Nf6 {[%clk 0:02:59]} 2. Nf3 {[%clk 0:03:01]}  d5 {[%clk 0:02:58]} 3. c4 {[%clk 0:03:00]}  e6 {[%clk 0:02:58]} 4. g3 {[%clk 0:03:00]}  dxc4 {[%clk 0:02:58]} 5. Bg2 {[%clk 0:03:00]}  c6 {[%clk 0:02:58]} 6. Ne5 {[%clk 0:02:45]}  Bb4+ {[%clk 0:02:54]} 7. Nc3 {[%clk 0:02:39]}  Nd5 {[%clk 0:02:54]} 8. Qc2 {[%clk 0:02:13]}  Nxc3 {[%clk 0:02:44]} 9. bxc3 {[%clk 0:02:11]}  Qxd4 {[%clk 0:02:41]} 10. cxb4 {[%clk 0:01:58]}  Qxa1 {[%clk 0:02:41]} 11. Nxc4 {[%clk 0:01:54]}  O-O {[%clk 0:02:40]} 12. O-O {[%clk 0:01:52]}  Qf6 {[%clk 0:02:34]} 13. Bb2 {[%clk 0:01:49]}  Qe7 {[%clk 0:02:34]} 14. Qc3 {[%clk 0:01:14]}  f6 {[%clk 0:02:32]} 15. g4 {[%clk 0:01:12]}  e5 {[%clk 0:02:27]} 16. g5 {[%clk 0:01:11]}  Be6 {[%clk 0:02:28]} 17. gxf6 {[%clk 0:01:09]}  gxf6 {[%clk 0:02:26]} 18. f4 {[%clk 0:01:07]}  Nd7 {[%clk 0:02:13]} 19. fxe5 {[%clk 0:01:02]}  fxe5 {[%clk 0:02:06]} 20. Rd1 {[%clk 0:00:49]}  Rad8 {[%clk 0:01:54]} 21. Kh1 {[%clk 0:00:47]}  Nb6 {[%clk 0:01:40]} 22. Qg3+ {[%clk 0:00:32]}  Qg7 {[%clk 0:01:39]} 23. Qxg7+ {[%clk 0:00:29]}  Kxg7 {[%clk 0:01:38]} 24. Bxe5+ {[%clk 0:00:29]}  Kg8 {[%clk 0:01:39]} 25. Nd6 {[%clk 0:00:29]}  Nc4 {[%clk 0:01:36]} 26. Bg3 {[%clk 0:00:23]}  Nxd6 {[%clk 0:01:36]} 27. Bxd6 {[%clk 0:00:24]}  Rf6 {[%clk 0:01:29]} 28. e4 {[%clk 0:00:21]}  Bg4 {[%clk 0:01:28]} 29. Rg1 {[%clk 0:00:18]}  Rfxd6 {[%clk 0:01:25]} 0-1


[Site "https://www.chess.com"]

[Event "Titled Tuesday Blitz November 15 Late 2022"]
[White "Mgeladze, Tamaz"]
[Black "Hakobyan, Aram"]
[WhiteFideId "13601202"]
[BlackFideId "13306677"]
[WhiteElo "2288"]
[BlackElo "2563"]
[Result "0-1"]
[Round "02"]
[TimeControl "180+1"]
[Date "2022.11.15"]
[WhiteClock "0:00:02"]
[BlackClock "0:00:31"]

1. c4 {[%clk 0:02:59]}  Nf6 {[%clk 0:03:00]} 2. Nc3 {[%clk 0:02:59]}  e6 {[%clk 0:02:59]} 3. e4 {[%clk 0:02:59]}  e5 {[%clk 0:03:00]} 4. f4 {[%clk 0:02:59]}  d6 {[%clk 0:02:59]} 5. Nf3 {[%clk 0:02:57]}  Bg4 {[%clk 0:02:58]} 6. d4 {[%clk 0:02:54]}  Bxf3 {[%clk 0:02:58]} 7. gxf3 {[%clk 0:02:53]}  Nh5 {[%clk 0:02:57]} 8. fxe5 {[%clk 0:02:52]}  dxe5 {[%clk 0:02:57]} 9. dxe5 {[%clk 0:02:51]}  Qh4+ {[%clk 0:02:57]} 10. Kd2 {[%clk 0:02:51]}  Na6 {[%clk 0:02:49]} 11. Qa4+ {[%clk 0:02:37]}  c6 {[%clk 0:02:49]} 12. Kc2 {[%clk 0:02:31]}  O-O-O {[%clk 0:02:32]} 13. Be3 {[%clk 0:02:29]}  Bc5 {[%clk 0:02:25]} 14. Bxc5 {[%clk 0:02:20]}  Nxc5 {[%clk 0:02:26]} 15. Qxa7 {[%clk 0:02:17]}  Qf2+ {[%clk 0:02:21]} 16. Be2 {[%clk 0:02:17]}  Rd2+ {[%clk 0:02:17]} 17. Kxd2 {[%clk 0:02:11]}  Nxe4+ {[%clk 0:02:13]} 18. fxe4 {[%clk 0:02:12]}  Qxa7 {[%clk 0:02:10]} 19. Bxh5 {[%clk 0:02:12]}  Qf2+ {[%clk 0:01:55]} 20. Be2 {[%clk 0:02:11]}  Rd8+ {[%clk 0:01:55]} 21. Kc2 {[%clk 0:02:11]}  Qf4 {[%clk 0:01:56]} 22. Rad1 {[%clk 0:02:05]}  Rxd1 {[%clk 0:01:56]} 23. Kxd1 {[%clk 0:02:01]}  Qxe5 {[%clk 0:01:56]} 24. h4 {[%clk 0:02:00]}  g6 {[%clk 0:01:49]} 25. h5 {[%clk 0:01:59]}  g5 {[%clk 0:01:49]} 26. h6 {[%clk 0:01:56]}  Kb8 {[%clk 0:01:46]} 27. Rf1 {[%clk 0:01:50]}  Qd6+ {[%clk 0:01:46]} 28. Ke1 {[%clk 0:01:46]}  Qxh6 {[%clk 0:01:47]} 29. Rxf7 {[%clk 0:01:45]}  g4 {[%clk 0:01:48]} 30. Nd1 {[%clk 0:01:05]}  g3 {[%clk 0:01:38]} 31. Bf3 {[%clk 0:01:03]}  Qh2 {[%clk 0:01:29]} 32. Rg7 {[%clk 0:00:58]}  h5 {[%clk 0:01:29]} 33. e5 {[%clk 0:00:56]}  Qh4 {[%clk 0:00:48]} 34. e6 {[%clk 0:00:50]}  g2+ {[%clk 0:00:46]} 35. Nf2 {[%clk 0:00:38]}  Qf6 {[%clk 0:00:43]} 36. Rxg2 {[%clk 0:00:27]}  Qxf3 {[%clk 0:00:42]} 37. Kf1 {[%clk 0:00:09]}  Qf6 {[%clk 0:00:38]} 38. Rg8+ {[%clk 0:00:07]}  Ka7 {[%clk 0:00:39]} 39. Re8 {[%clk 0:00:08]}  h4 {[%clk 0:00:38]} 40. Ke2 {[%clk 0:00:05]}  h3 {[%clk 0:00:35]} 41. Ne4 {[%clk 0:00:05]}  Qe5 {[%clk 0:00:31]} 42. Ke3 {[%clk 0:00:02]}  h2 {[%clk 0:00:31]} 0-1


[Site "https://www.chess.com"]

[Event "Titled Tuesday Blitz November 15 Late 2022"]
[White "Mickiewicz, Piotr"]
[Black "Kouskoutis, Georgios-Alexandros"]
[WhiteFideId "1114891"]
[BlackFideId "4234049"]
[WhiteElo "2246"]
[BlackElo "2187"]
[Result "1-0"]
[Round "02"]
[TimeControl "180+1"]
[Date "2022.11.16"]
[WhiteClock "0:00:38"]
[BlackClock "0:00:03"]

1. e4 {[%clk 0:03:00]}  c5 {[%clk 0:02:58]} 2. Nf3 {[%clk 0:03:00]}  g6 {[%clk 0:02:53]} 3. d4 {[%clk 0:02:59]}  cxd4 {[%clk 0:02:53]} 4. Nxd4 {[%clk 0:02:59]}  Bg7 {[%clk 0:02:53]} 5. Nc3 {[%clk 0:02:58]}  Nc6 {[%clk 0:02:53]} 6. Be3 {[%clk 0:02:59]}  Nf6 {[%clk 0:02:53]} 7. Bc4 {[%clk 0:02:59]}  O-O {[%clk 0:02:51]} 8. Bb3 {[%clk 0:02:59]}  d6 {[%clk 0:02:50]} 9. h3 {[%clk 0:02:59]}  Bd7 {[%clk 0:02:47]} 10. O-O {[%clk 0:02:57]}  Nxd4 {[%clk 0:02:44]} 11. Bxd4 {[%clk 0:02:57]}  Bc6 {[%clk 0:02:45]} 12. Re1 {[%clk 0:02:57]}  e5 {[%clk 0:02:29]} 13. Be3 {[%clk 0:02:55]}  Nxe4 {[%clk 0:02:29]} 14. Nd5 {[%clk 0:02:48]}  Nc5 {[%clk 0:02:21]} 15. Qd2 {[%clk 0:02:36]}  a5 {[%clk 0:02:12]} 16. c4 {[%clk 0:02:11]}  a4 {[%clk 0:01:58]} 17. Bc2 {[%clk 0:02:10]}  b5 {[%clk 0:01:50]} 18. cxb5 {[%clk 0:02:07]}  Bxb5 {[%clk 0:01:51]} 19. Rad1 {[%clk 0:02:00]}  Nb7 {[%clk 0:01:20]} 20. Nc3 {[%clk 0:01:51]}  Bc6 {[%clk 0:01:19]} 21. Be4 {[%clk 0:01:49]}  Rc8 {[%clk 0:00:55]} 22. Bxc6 {[%clk 0:01:43]}  Rxc6 {[%clk 0:00:56]} 23. Nxa4 {[%clk 0:01:44]}  Qa8 {[%clk 0:00:48]} 24. Nc3 {[%clk 0:01:37]}  Qa5 {[%clk 0:00:34]} 25. Qd5 {[%clk 0:01:34]}  Rfc8 {[%clk 0:00:27]} 26. Rd2 {[%clk 0:01:29]}  Qxd5 {[%clk 0:00:21]} 27. Nxd5 {[%clk 0:01:28]}  Kf8 {[%clk 0:00:19]} 28. b4 {[%clk 0:01:27]}  Rc2 {[%clk 0:00:16]} 29. Ree2 {[%clk 0:01:25]}  Rxd2 {[%clk 0:00:09]} 30. Rxd2 {[%clk 0:01:24]}  Ra8 {[%clk 0:00:09]} 31. Rc2 {[%clk 0:01:10]}  Nd8 {[%clk 0:00:08]} 32. Nb6 {[%clk 0:00:50]}  Ra6 {[%clk 0:00:04]} 33. a4 {[%clk 0:00:49]}  f5 {[%clk 0:00:03]} 34. b5 {[%clk 0:00:45]}  Ra5 {[%clk 0:00:03]} 35. Rc8 {[%clk 0:00:40]}  Ke8 {[%clk 0:00:03]} 36. Bg5 {[%clk 0:00:38]} 1-0


[Site "https://www.chess.com"]

[Event "Titled Tuesday Blitz November 15 Late 2022"]
[White "Mladenovic, Stefan"]
[Black "Sanal, Vahap"]
[WhiteFideId "942227"]
[BlackFideId "6300545"]
[WhiteElo "2337"]
[BlackElo "2574"]
[Result "0-1"]
[Round "02"]
[TimeControl "180+1"]
[Date "2022.11.15"]
[WhiteClock "0:00:34"]
[BlackClock "0:01:37"]

1. d4 {[%clk 0:03:00]}  d6 {[%clk 0:02:52]} 2. Nf3 {[%clk 0:03:01]}  Nf6 {[%clk 0:02:52]} 3. Bf4 {[%clk 0:03:01]}  c5 {[%clk 0:02:49]} 4. e3 {[%clk 0:03:01]}  Nbd7 {[%clk 0:02:47]} 5. c3 {[%clk 0:02:58]}  g6 {[%clk 0:02:45]} 6. Be2 {[%clk 0:02:58]}  Bg7 {[%clk 0:02:46]} 7. O-O {[%clk 0:02:59]}  O-O {[%clk 0:02:47]} 8. h3 {[%clk 0:02:59]}  b6 {[%clk 0:02:47]} 9. a4 {[%clk 0:02:58]}  a6 {[%clk 0:02:44]} 10. Bh2 {[%clk 0:02:58]}  Bb7 {[%clk 0:02:44]} 11. Nbd2 {[%clk 0:02:57]}  Qc7 {[%clk 0:02:44]} 12. Bd3 {[%clk 0:02:56]}  Rfe8 {[%clk 0:02:44]} 13. Qe2 {[%clk 0:02:55]}  e5 {[%clk 0:02:43]} 14. dxe5 {[%clk 0:02:55]}  Nxe5 {[%clk 0:02:43]} 15. Nxe5 {[%clk 0:02:54]}  dxe5 {[%clk 0:02:43]} 16. Rfd1 {[%clk 0:02:35]}  h5 {[%clk 0:02:31]} 17. Nc4 {[%clk 0:02:23]}  Qc6 {[%clk 0:02:23]} 18. f3 {[%clk 0:02:19]}  e4 {[%clk 0:02:20]} 19. fxe4 {[%clk 0:02:16]}  Nxe4 {[%clk 0:02:21]} 20. Bxe4 {[%clk 0:02:15]}  Rxe4 {[%clk 0:02:15]} 21. Rd6 {[%clk 0:02:03]}  Qe8 {[%clk 0:02:08]} 22. Rxb6 {[%clk 0:02:01]}  Bd5 {[%clk 0:01:49]} 23. Nd6 {[%clk 0:01:59]}  Rxe3 {[%clk 0:01:49]} 24. Qf2 {[%clk 0:01:50]}  Qe7 {[%clk 0:01:39]} 25. Rd1 {[%clk 0:00:34]}  Re2 {[%clk 0:01:39]} 26. Rxd5 {[%clk 0:00:34]}  Re1+ {[%clk 0:01:37]} 0-1


[Site "https://www.chess.com"]

[Event "Titled Tuesday Blitz November 15 Late 2022"]
[White "Molenda, Marcin"]
[Black "Haszon, David"]
[WhiteFideId "1173065"]
[BlackFideId "733610"]
[WhiteElo "2281"]
[BlackElo "2211"]
[Result "1-0"]
[Round "02"]
[TimeControl "180+1"]
[Date "2022.11.16"]
[WhiteClock "0:02:03"]
[BlackClock "0:00:50"]

1. e4 {[%clk 0:02:55]}  c5 {[%clk 0:02:59]} 2. Nf3 {[%clk 0:02:55]}  d6 {[%clk 0:02:59]} 3. Bb5+ {[%clk 0:02:53]}  Nd7 {[%clk 0:02:59]} 4. O-O {[%clk 0:02:51]}  a6 {[%clk 0:02:58]} 5. Bd3 {[%clk 0:02:52]}  Ngf6 {[%clk 0:02:55]} 6. Re1 {[%clk 0:02:48]}  e5 {[%clk 0:02:54]} 7. c3 {[%clk 0:02:48]}  Be7 {[%clk 0:02:48]} 8. Bc2 {[%clk 0:02:47]}  O-O {[%clk 0:02:48]} 9. d4 {[%clk 0:02:47]}  Qc7 {[%clk 0:02:48]} 10. Nbd2 {[%clk 0:02:44]}  b5 {[%clk 0:02:43]} 11. d5 {[%clk 0:02:44]}  c4 {[%clk 0:02:34]} 12. Kh1 {[%clk 0:02:35]}  Qa7 {[%clk 0:02:24]} 13. Qe2 {[%clk 0:02:35]}  Nc5 {[%clk 0:02:24]} 14. Nf1 {[%clk 0:02:32]}  Bg4 {[%clk 0:02:22]} 15. h3 {[%clk 0:02:32]}  Bh5 {[%clk 0:02:21]} 16. g4 {[%clk 0:02:32]}  Bg6 {[%clk 0:02:12]} 17. Ng3 {[%clk 0:02:32]}  h5 {[%clk 0:02:04]} 18. g5 {[%clk 0:02:15]}  Nh7 {[%clk 0:01:49]} 19. Rg1 {[%clk 0:02:15]}  Qd7 {[%clk 0:01:46]} 20. Kh2 {[%clk 0:02:13]}  f6 {[%clk 0:01:29]} 21. Nh4 {[%clk 0:02:10]}  Be8 {[%clk 0:01:04]} 22. g6 {[%clk 0:02:10]}  Ng5 {[%clk 0:01:02]} 23. Bxg5 {[%clk 0:02:09]}  fxg5 {[%clk 0:01:03]} 24. Qxh5 {[%clk 0:02:10]}  Rxf2+ {[%clk 0:00:54]} 25. Rg2 {[%clk 0:02:09]}  Rxg2+ {[%clk 0:00:54]} 26. Nxg2 {[%clk 0:02:09]}  Bf6 {[%clk 0:00:50]} 27. Nf5 {[%clk 0:02:03]} 1-0


[Site "https://www.chess.com"]

[Event "Titled Tuesday Blitz November 15 Late 2022"]
[White "Mustafayev, Farid"]
[Black "Jones, Gawain C B"]
[WhiteFideId "13408771"]
[BlackFideId "409561"]
[WhiteElo "2192"]
[BlackElo "2657"]
[Result "0-1"]
[Round "02"]
[TimeControl "180+1"]
[Date "2022.11.15"]
[WhiteClock "0:00:23"]
[BlackClock "0:00:08"]

1. d4 {[%clk 0:02:58]}  Nf6 {[%clk 0:02:59]} 2. c4 {[%clk 0:02:55]}  g6 {[%clk 0:03:00]} 3. Nf3 {[%clk 0:02:55]}  Bg7 {[%clk 0:03:00]} 4. g3 {[%clk 0:02:56]}  c5 {[%clk 0:03:00]} 5. Bg2 {[%clk 0:02:54]}  O-O {[%clk 0:02:59]} 6. Nc3 {[%clk 0:02:54]}  d6 {[%clk 0:02:58]} 7. O-O {[%clk 0:02:54]}  Nc6 {[%clk 0:02:58]} 8. d5 {[%clk 0:02:53]}  Na5 {[%clk 0:02:58]} 9. Nd2 {[%clk 0:02:54]}  e6 {[%clk 0:02:56]} 10. Rb1 {[%clk 0:02:50]}  exd5 {[%clk 0:02:52]} 11. cxd5 {[%clk 0:02:51]}  Re8 {[%clk 0:02:49]} 12. a3 {[%clk 0:02:49]}  Bf5 {[%clk 0:02:34]} 13. e4 {[%clk 0:02:48]}  Bg4 {[%clk 0:02:34]} 14. f3 {[%clk 0:02:39]}  Bd7 {[%clk 0:02:34]} 15. b4 {[%clk 0:02:28]}  cxb4 {[%clk 0:02:33]} 16. axb4 {[%clk 0:02:29]}  Rc8 {[%clk 0:02:31]} 17. bxa5 {[%clk 0:02:20]}  Rxc3 {[%clk 0:02:31]} 18. Rxb7 {[%clk 0:02:21]}  Qxa5 {[%clk 0:02:26]} 19. Bb2 {[%clk 0:02:21]}  Rd3 {[%clk 0:02:05]} 20. Rf2 {[%clk 0:02:08]}  Bb5 {[%clk 0:01:37]} 21. Bf1 {[%clk 0:02:01]}  Qa6 {[%clk 0:00:58]} 22. Rc7 {[%clk 0:01:40]}  Nxd5 {[%clk 0:00:36]} 23. exd5 {[%clk 0:01:19]}  Bxb2 {[%clk 0:00:36]} 24. Bxd3 {[%clk 0:01:19]}  Bxd3 {[%clk 0:00:36]} 25. Ne4 {[%clk 0:01:15]}  Bd4 {[%clk 0:00:31]} 26. Kg2 {[%clk 0:01:10]}  Rxe4 {[%clk 0:00:30]} 27. fxe4 {[%clk 0:00:48]}  Bxe4+ {[%clk 0:00:31]} 28. Rf3 {[%clk 0:00:47]}  Bf6 {[%clk 0:00:18]} 29. Qe1 {[%clk 0:00:39]}  Qa2+ {[%clk 0:00:14]} 30. Qf2 {[%clk 0:00:39]}  Bxf3+ {[%clk 0:00:12]} 31. Kxf3 {[%clk 0:00:40]}  Qxd5+ {[%clk 0:00:12]} 32. Ke2 {[%clk 0:00:38]}  Qb5+ {[%clk 0:00:11]} 33. Kd1 {[%clk 0:00:32]}  Qd5+ {[%clk 0:00:06]} 34. Qd2 {[%clk 0:00:30]}  Qxd2+ {[%clk 0:00:06]} 35. Kxd2 {[%clk 0:00:30]}  Bd4 {[%clk 0:00:07]} 36. Kd3 {[%clk 0:00:26]}  Bc5 {[%clk 0:00:07]} 37. Ke4 {[%clk 0:00:24]}  h5 {[%clk 0:00:07]} 38. h3 {[%clk 0:00:24]}  Kg7 {[%clk 0:00:08]} 39. g4 {[%clk 0:00:24]}  Kf6 {[%clk 0:00:07]} 40. Kf4 {[%clk 0:00:24]}  hxg4 {[%clk 0:00:06]} 41. hxg4 {[%clk 0:00:24]}  g5+ {[%clk 0:00:05]} 42. Ke4 {[%clk 0:00:25]}  Ke6 {[%clk 0:00:06]} 43. Rc6 {[%clk 0:00:24]}  a5 {[%clk 0:00:05]} 44. Ra6 {[%clk 0:00:25]}  Bb4 {[%clk 0:00:05]} 45. Kd4 {[%clk 0:00:25]}  f5 {[%clk 0:00:05]} 46. gxf5+ {[%clk 0:00:24]}  Kxf5 {[%clk 0:00:05]} 47. Ra8 {[%clk 0:00:25]}  Kf4 {[%clk 0:00:06]} 48. Rf8+ {[%clk 0:00:25]}  Kg3 {[%clk 0:00:06]} 49. Rf5 {[%clk 0:00:26]}  g4 {[%clk 0:00:06]} 50. Ke4 {[%clk 0:00:26]}  Bc5 {[%clk 0:00:05]} 51. Rg5 {[%clk 0:00:24]}  a4 {[%clk 0:00:06]} 52. Kf5 {[%clk 0:00:24]}  a3 {[%clk 0:00:06]} 53. Rxg4+ {[%clk 0:00:25]}  Kf3 {[%clk 0:00:07]} 54. Ra4 {[%clk 0:00:25]}  Ke3 {[%clk 0:00:07]} 55. Ke6 {[%clk 0:00:22]}  Kd3 {[%clk 0:00:07]} 56. Kd5 {[%clk 0:00:22]}  Kc3 {[%clk 0:00:07]} 57. Rg4 {[%clk 0:00:22]}  a2 {[%clk 0:00:08]} 58. Rg3+ {[%clk 0:00:23]}  Kb2 {[%clk 0:00:08]} 59. Rg2+ {[%clk 0:00:23]}  Kb1 {[%clk 0:00:08]} 0-1


[Site "https://www.chess.com"]